{"text_format":"1","workbook":"xlsx","n_sheets":1,"sheets":["LAWN & LANDSCAPE"],"not_rendered":{"charts":0,"images":5,"macros":1,"external_links":0,"defined_names":1,"comments":0,"pivot_tables":0},"unopened":[],"bounds":{"document_bytes":16777216,"sheet_cells":100000,"rows_first":2000,"rows_last":500,"rows_between":2000,"halvings":0,"cell_chars":16384,"cell_head_chars":4096},"cells_cut":0,"cells_raw":0,"read":"whole","date_system":"1900"}

{"sheet":"LAWN & LANDSCAPE","index":0,"n_rows":99,"n_cols":92,"rows_kept":99,"cut":false,"hidden":false,"merged":[[61,14,61,16],[62,14,62,16],[50,7,50,9],[62,6,62,7],[61,10,61,13],[51,7,51,9],[62,8,62,9],[60,6,60,7],[54,1,55,16],[61,8,61,9],[58,8,59,9],[61,1,61,5],[58,6,59,7],[58,1,59,5],[56,1,57,14],[60,1,60,5],[50,1,50,6],[50,10,50,11],[50,12,50,14],[50,15,50,16],[44,7,44,9],[45,7,45,9],[41,7,41,9],[49,7,49,9],[49,10,49,11],[49,12,49,14],[11,1,11,23],[23,13,23,19],[60,14,60,16],[41,1,41,4],[49,15,49,16],[47,7,47,9],[46,1,46,6],[48,12,48,14],[46,12,46,14],[46,10,46,11],[45,1,45,6],[48,15,48,16],[48,7,48,9],[45,12,45,14],[46,15,46,16],[46,7,46,9],[47,10,47,11],[47,12,47,14],[37,15,37,16],[37,23,37,25],[43,19,43,21],[42,23,42,25],[43,23,43,25],[39,19,39,21],[41,19,41,21],[38,19,38,21],[37,7,37,9],[39,17,39,18],[39,10,39,11],[42,15,42,16],[42,7,42,9],[42,10,42,11],[48,19,48,21],[48,23,48,25],[42,17,42,18],[47,19,47,21],[46,19,46,22],[44,19,44,21],[45,19,45,21],[48,17,48,18],[45,17,45,18],[44,17,44,18],[47,17,47,18],[46,17,46,18],[43,17,43,18],[42,19,42,21],[47,23,47,25],[46,23,46,25],[45,23,45,25],[33,1,33,6],[35,7,35,9],[37,17,37,18],[34,1,34,6],[43,10,43,11],[35,1,35,6],[38,1,38,6],[38,12,38,14],[39,12,39,14],[41,12,41,14],[42,12,42,14],[35,10,35,11],[36,10,36,11],[37,1,37,6],[39,1,39,6],[41,5,41,6],[41,10,41,11],[37,12,37,14],[43,1,43,6],[42,1,42,6],[41,15,41,16],[39,15,39,16],[34,7,34,9],[37,10,37,11],[16,19,16,23],[33,12,33,14],[31,7,31,9],[31,12,31,14],[29,15,29,16],[23,20,23,22],[24,20,24,22],[23,23,23,26],[24,23,24,26],[28,19,28,22],[31,23,31,25],[31,10,31,11],[29,7,29,9],[33,10,33,11],[32,10,32,11],[29,10,29,11],[29,12,29,14],[32,7,32,9],[33,7,33,9],[26,26,26,27],[28,23,28,25],[32,23,32,25],[33,23,33,25],[28,15,28,16],[12,1,12,23],[14,19,14,23],[14,9,14,12],[14,1,14,6],[21,4,23,8],[32,1,32,6],[31,15,31,16],[31,19,31,21],[24,13,24,19],[29,19,29,21],[30,19,30,21],[31,17,31,18],[29,1,29,4],[29,5,29,6],[31,1,31,6],[30,15,30,16],[29,23,29,25],[30,23,30,25],[16,13,16,14],[16,15,16,16],[16,17,16,18],[16,9,16,12],[17,1,17,23],[15,17,15,18],[50,17,50,18],[63,1,63,5],[75,23,75,28],[63,6,63,7],[63,8,63,9],[64,1,64,5],[90,1,90,5],[90,6,90,14],[90,15,90,21],[70,2,70,6],[65,14,65,16],[64,14,64,16],[63,10,63,13],[63,14,63,16],[69,2,69,6],[70,7,70,8],[70,9,70,13],[70,16,70,19],[69,16,69,19],[70,23,70,27],[70,14,70,15],[60,8,60,9],[62,10,62,13],[58,14,59,16],[13,19,13,23],[34,12,34,14],[13,13,13,14],[65,1,65,5],[61,6,61,7],[58,10,59,13],[60,10,60,13],[28,1,28,6],[28,7,28,9],[28,10,28,11],[28,12,28,14],[26,13,26,18],[28,17,28,18],[35,12,35,14],[32,12,32,14],[14,7,14,8],[13,9,13,12],[13,15,13,16],[13,17,13,18],[13,1,13,6],[13,7,13,8],[35,19,35,21],[15,15,15,16],[49,19,49,21],[10,1,10,23],[62,1,62,5],[5,1,7,17],[8,1,9,17],[38,17,38,18],[38,15,38,16],[32,15,32,16],[30,1,30,6],[30,7,30,9],[30,10,30,11],[30,12,30,14],[38,10,38,11],[16,1,16,6],[15,19,15,23],[16,7,16,8],[14,13,14,14],[14,15,14,16],[15,9,15,12],[14,17,14,18],[15,1,15,6],[15,7,15,8],[15,13,15,14],[29,17,29,18],[33,15,33,16],[30,17,30,18],[34,17,34,18],[32,17,32,18],[33,17,33,18],[33,19,33,21],[36,15,36,16],[36,17,36,18],[36,19,36,21],[35,17,35,18],[35,15,35,16],[34,10,34,11],[49,1,49,6],[23,27,23,30],[24,27,24,30],[25,28,25,30],[28,26,28,29],[29,26,29,29],[30,26,30,29],[31,26,31,29],[32,26,32,29],[28,30,28,33],[32,30,32,33],[34,26,34,29],[35,26,35,29],[36,26,36,29],[37,26,37,29],[38,26,38,29],[39,26,39,29],[33,30,33,33],[34,19,34,21],[32,19,32,21],[47,26,47,29],[36,1,36,6],[34,15,34,16],[69,9,69,13],[36,12,36,14],[37,19,37,21],[45,10,45,11],[44,10,44,11],[47,15,47,16],[45,15,45,16],[44,1,44,6],[44,12,44,14],[44,15,44,16],[43,7,43,9],[43,15,43,16],[43,12,43,14],[48,10,48,11],[47,1,47,4],[47,5,47,6],[48,1,48,6],[64,6,65,13],[36,7,36,9],[38,7,38,9],[39,7,39,9],[50,19,50,21],[41,17,41,18],[49,17,49,18],[33,26,33,29],[35,23,35,25],[36,23,36,25],[49,23,49,25],[50,23,50,25],[51,24,51,25],[39,30,39,33],[46,30,46,33],[48,26,48,29],[49,26,49,29],[50,26,50,29],[41,26,41,29],[44,23,44,25],[39,23,39,25],[41,23,41,25],[34,23,34,25],[38,23,38,25],[51,31,51,33],[70,31,70,33],[69,31,69,34],[73,31,73,34],[72,30,72,35],[34,30,34,33],[35,30,35,33],[42,26,42,29],[43,26,43,29],[44,26,44,29],[45,26,45,29],[46,26,46,29],[68,23,69,27],[85,3,88,33],[40,1,40,33],[78,3,83,33],[90,22,90,33],[75,29,75,33],[75,1,75,8],[73,9,73,13],[72,8,72,15],[29,30,29,32],[30,30,30,32],[31,30,31,32],[36,30,36,32],[37,30,37,32],[38,30,38,32],[41,30,41,32],[42,30,42,32],[43,30,43,32],[44,30,44,32],[45,30,45,32],[60,19,60,25],[47,30,47,33],[48,30,48,33],[49,30,49,33],[50,30,50,33]]}
[null,null,null,null,null,null,null,null,null,null,null,null,null,null,null,null,null,null,null,null,null,null,null,null,null,null,null,null,null,null,null,null,null,null,null,null,null,null,null,null,null,null,null,null,null,null,null,null,null,null,null,null,null,null,null,null,null,null,null,null,null,{"$f":"IF(BU87>0,BU87,\"\")","v":""}]
[null,null,null,null,null,null,null,null,null,null,null,null,null,null,null,null,null,null,null,null,null,null,null,null,null,null,null,null,null,null,null,null,null,null,null,null,null,null,null,null,null,null,null,null,null,null,null,null,null,null,null,null,null,null,null,null,null,null,null,null,null,null,null,null,null,null,null,null,null,null,null,null,false]
[null,null,null,null,null,null,null,null,null,null,null,null,null,null,null,null,null,null,null,null,null,null,null,null,null,null,null,null,null,null,null,null,null,null,null,null,null,null,null,null,null,null,null,null,null,null,null,null,null,null,null,null,null,null,null,null,null,null,null,null,null,{"$f":"IF(TRIM(BJ1)<>\"\",IF((BJ1)<2500,0,IF(AND((BJ1)>=2500,(BJ1)<10000),0.02,IF(AND((BJ1)>=10000,(BJ1)<15000),0.03,IF(AND((BJ1)>=15000,(BJ1)<25000),0.04,IF(AND((BJ1)>=25000,(BJ1)<28500),0.05,IF(AND((BJ1)>=28500,(BJ1)<40000),0.08,IF((BJ1)>=40000,0.09,\"\"))))))),\"\")","v":""}]
[null,null,null,null,null,null,null,null,null,null,null,null,null,null,null,null,null,null,null,null,null,null,null,null,null,null,null,null,null,null,null,null,null,null,null,null,null,null,null,null,null,null,null,null,null,null,null,null,null,null,null,null,null,null,null,null,null,null,null,null,null,null,null,null,null,null,null,null,null,null,null,null,1]
[null,null,null,null,null,null,null,null,null,null,null,null,null,null,null,null,null,null,null,null,null,null,null,null,null,null,null,null,null,null,null,null,null,null,null,null,null,null,null,null,null,null,null,null,null,null,null,null,null,null,null,null,null,null,null,null,null,null,null,null,null,{"$f":"IF((BU2)=TRUE,IF(BJ1>=28500,\"\",IF(TRIM(BJ1)<>\"\",0.01,\"\")),\"\")","v":""}]
[null,"Bayer PAKS offer solutions for\nyour specific turf needs."]
[]
[null,null,null,null,null,null,null,null,null,null,null,null,null,null,null,null,null,null,null,null,null,null,null,null,null,null,null,null,null,null,null,null,null,null,null,null,null,null,null,null,null,null,null,null,null,null,null,null,null,null,null,null,null,null,null,null,null,null,null,null,null,{"$f":"IF(TRIM(AC26)<>\"\",IF(BJ1>=28500,\"\",0.01),\"\")","v":""}]
[]
[]
[]
[null,{"$f":"CONCATENATE(\"Warm Season Herbicide PAK\",IF(BS61=3,\" - NOT AVAIL.\",CONCATENATE(\" - $\",FIXED(X25,2,FALSE))))","v":"Warm Season Herbicide PAK - $5,150.00"},null,null,null,null,null,null,null,null,null,null,null,null,null,null,null,null,null,null,null,null,null,null,null,null,null,null,null,null,null,null,null,null,null,null,null,null,null,null,null,null,null,null,null,null,null,null,null,null,null,null,null,null,null,null,null,null,null,null,null,{"$f":"IF(SUM(BJ3:BJ10)>=0,SUM(BJ3:BJ10),\"\")","v":0}]
[null,{"$f":"IF(BS61=3,\"THIS PAK IS NOT AVAILABLE FOR NEW YORK CUSTOMERS.\",\"Provides a great combination of pre- and postemergent herbicide options to control a broad spectrum of difficult to control weeds.\")","v":"Provides a great combination of pre- and postemergent herbicide options to control a broad spectrum of difficult to control weeds."}]
[null,"PRODUCTS",null,null,null,null,null,"UNITS/PAK",null,"UNIT SIZE",null,null,null,"GAL/LB\n/OZ",null,"USE RATE\n/ 1,000 ft2",null,"USE RATE\n/ ACRE",null,"ACRES TREATED\n/ UNIT",null,null,null,null,null,null,null,null,null,null,null,"                                      "]
[null,"Specticle® FLO",null,null,null,null,null,1,null,"2 x 1 gal/case",null,null,null,{"$f":"IF(TRIM(H15)<>\"\",(H15)*2,\"\")","v":2},null,0.1492194,null,{"$f":"IF(TRIM(P15)<>\"\",P15*43.56,\"\")","v":6.4999970640000004},null,{"$f":"IF(TRIM(R15)<>\"\",(N15*128)/R15,\"\")","v":39.384633174351229}]
[null,"Tribute® Total",null,null,null,null,null,1,null,"  6 x 6  oz/case",null,null,null,{"$f":"IF(TRIM(H16)<>\"\",(H16)*36,\"\")","v":36},null,6.8870520000000005E-2,null,{"$f":"IF(TRIM(P16)<>\"\",P16*43.56,\"\")","v":2.9999998512000006},null,{"$f":"IF(TRIM(R16)<>\"\",(N16*1)/R16,\"\")","v":12.000000595200028}]
[null,"Specticle Total",null,null,null,null,null,2,null,"4 x 144 oz/case",null,null,null,{"$f":"IF(TRIM(H17)<>\"\",(H17)*576,\"\")","v":1152},null,16,null,{"$f":"IF(TRIM(P17)<>\"\",P17*43.56,\"\")","v":696.96},null,1.6]
[null,"Warm Season Hebicide PAK Terms of Payment: Full payment must be received by 6/5/17  "]
[]
[null,null,null,null,null,null,null,null,null,null,null,null,null,null,null,null,null,null,null,null,null,null,null,null,null,null,null,null,null,null,null,null,null,null,null,null,null,null,null,null,null,null,null,null,null,null,null,null,null,null,null,null,null,null,null,null,null,null,null,null,"TOTAL",{"$f":"IF(SUM(AC26,Y52)>0,SUM(AC26,Y52),\"\")","v":""}]
[null,null,null,null,null,null,null,null,null,null,null,null,null,null,null,null,null,null,null,null,null,null,null,null,null,null,null,null,null,null,null,null,null,null,null,null,null,null,null,null,null,null,null,null,null,null,null,null,null,null,null,null,null,null,null,null,null,null,null,null,"TOTAL PROGRAM REBATE",{"$f":"IF(TRIM(BJ20)<>\"\",IF(BU87>=2500,IF(TRIM(BJ12)<>\"\",BJ12,\"\"),\"\"),\"\")","v":""}]
[]
[null,null,null,null,null,null,null,null,null,null,null,null,null,null,null,null,null,null,null,null,null,null,null,null,null,null,null,null,null,null,null,null,null,null,null,null,null,null,null,null,null,null,null,null,null,null,null,null,null,null,null,null,null,null,null,null,null,null,null,null,"TOTAL PROGRAM REBATE",{"$f":"IF(TRIM(BJ1)=\"\",\"\",IF((BJ1)<2500,0,IF(AND(TRIM(BJ1)=\"\",TRIM(BJ21)=\"\"),\"\",(BJ1)*(BJ21))))","v":""}]
[null,null,null,null,null,null,null,null,null,null,null,null,null,"PRODUCTS",null,null,null,null,null,null,"# PAKS",null,null,"PRICE/PAK",null,null,null,"TOTAL $",null,null,null,null,null,null,null,null,null,null,null,null,null,null,null,null,null,null,null,null,null,null,null,null,null,null,null,null,null,null,null,null,"SELECT REBATE",{"$f":"IF(BU87>=2500,IF(TRIM(AF52)<>\"\",AF52,\"\"),\"\")","v":""}]
[null,null,null,null,null,null,null,null,null,null,null,null,null,{"$f":"IF(BS61=3,\"\",\"Warm Season Herbicide PAK\")","v":"Warm Season Herbicide PAK"},null,null,null,null,null,null,null,null,null,{"$f":"IF(BS61=3,\"\",IF($BS$61=1,BT58,IF($BS$61=2,BS58,BR58)))","v":5150},null,null,null,{"$f":"IF(BS61=3,\"\",IF(TRIM(U25)<>\"\",U25*X25,\"\"))","v":""},null,null,null,null,null,null,null,null,null,null,null,null,null,null,null,null,null,null,null,null,null,null,null,null,null,null,null,null,null,null,null,null,null,{"$f":"IF(AND(TRIM(BJ23)=\"\",TRIM(BJ24)=\"\"),\"\",SUM(BJ23,BJ24))","v":""}]
[null,null,null,null,null,null,null,null,null,null,null,null,null,null,null,null,null,null,null,null,null,null,null,null,null,null,null,"(A)",{"$f":"IF(SUM(AB25:AD25)>0,SUM(AB25:AD25),\"\")","v":""}]
[]
[null,null,null,null,null,null,null,null,null,null,null,null,null,null,null,null,null,null,null,null,null,null,null,null,null,null,null,null,null,null,null,null,null,null,null,null,null,null,null,null,null,null,null,null,null,null,null,null,null,null,null,null,null,null,null,null,null,null,2500,10000,{"$f":"IF(AND($BJ$20>=BG28,$BJ$20<=BH28),((BH28)-($BJ$20)),\"\")","v":""}]
[null,"     AGENCY PRODUCTS*",null,null,null,null,null,"UNIT SIZE",null,null,"# UNITS",null,"PRICE/UNIT",null,null,"USE RATE\n/ 1,000 ft2",null,"USE RATE\n/ ACRE",null,"ACRES TREATED\n/ UNIT",null,null,null,"TOTAL $",null,null,"SELECT REBATE/\nMINIMUM QTY ǂ",null,null,null,"SELECT  REBATE $",null,null,null,null,null,null,null,null,null,null,null,null,null,null,null,null,null,null,null,null,null,null,null,null,null,null,null,10000,15000,{"$f":"IF(AND($BJ$20>=BG29,$BJ$20<=BH29),((BH29)-($BJ$20)),\"\")","v":""}]
[null,"Bayleton® FLO",null,null,null,null,null," 2 X 2.5 gal/case",null,null,null,null,{"$f":"IF($BS$61=1,BT63,IF($BS$61=2,BS63,BR63))","v":2700},null,null,0.5,null,{"$f":"IF(TRIM(P30)<>\"\",P30*43.56,\"\")","v":21.78},null,{"$f":"IF(TRIM(R30)<>\"\",IF(TRIM(K30)<>\"\",((K30*5)*128)/R30,(5*128)/R30),\"\")","v":29.38475665748393},null,null,null,{"$f":"IF(BS61=2,\"\",IF(TRIM(K30)<>\"\",K30*M30,\"\"))","v":""},null,null,"  $70/gal – 10 gal",null,null,null,{"$f":"IF(TRIM(K30)<>\"\",IF(VALUE(K30)>=2,((K30)/0.2)*70,\"\"),\"\")","v":""},null,null,null,null,null,null,null,null,null,null,null,null,null,null,null,null,null,null,null,null,null,null,null,null,null,null,null,15000,25000,{"$f":"IF(AND($BJ$20>=BG30,$BJ$20<=BH30),((BH30)-($BJ$20)),\"\")","v":""}]
[null,{"$f":"IF(BS61=3,\"\",\"Celsius® WG\")","v":"Celsius® WG"},null,null,null,null,null,{"$f":"IF(BS61=3,\"\",\"8 X 10 oz/case\")","v":"8 X 10 oz/case"},null,null,null,null,{"$f":"IF(BS61=3,\"\",IF($BS$61=1,BT64,IF($BS$61=2,BS64,BR64)))","v":769.6},null,null,0.09,null,{"$f":"IF(BS61=3,\"\",IF(TRIM(P31)<>\"\",P31*43.56,\"\"))","v":3.9203999999999999},null,{"$f":"IF(BS61=3,\"\",IF(TRIM(R31)<>\"\",IF(TRIM(K31)<>\"\",(K31*(8*10))/R31,(8*10)/R31),\"\"))","v":20.40608101214162},null,null,null,{"$f":"IF(BS61=3,\"\",IF(TRIM(K31)<>\"\",K31*M31,\"\"))","v":""},null,null,{"$f":"IF(BS61=3,\"\",\"$15/case – 2 case\")","v":"$15/case – 2 case"},null,null,null,{"$f":"IF(BS61=3,\"\",IF(TRIM(K31)<>\"\",IF(VALUE(BM91)>=2,((K31)/0.125)*1.875,\"\"),\"\"))","v":""},null,null,null,null,null,null,null,null,null,null,null,null,null,null,null,null,null,null,null,null,null,null,null,null,null,null,null,25000,28500,{"$f":"IF(AND($BJ$20>=BG31,$BJ$20<=BH31),((BH31)-($BJ$20)),\"\")","v":""}]
[null,"Merit® 75 WSP Mega Mini",null,null,null,null,null,"110 X 1.6 oz/drum",null,null,null,null,1250,null,null,0.14699999999999999,null,6.4033199999999999,null,{"$f":"IF(TRIM(R32)<>\"\",IF(TRIM(K32)<>\"\",(K32*(110*1.6)/R32),(110*1.6)/R32),\"\")","v":27.485741771456059},null,null,null,{"$f":"IF(TRIM(K32)<>\"\",K32*M32,\"\")","v":""},null,null,"$200/drum – 2 drum",null,null,null,{"$f":"IF(TRIM(K32)<>\"\",IF(VALUE(K32)>=2,(K32)*200,\"\"),\"\")","v":""},null,null,null,null,null,null,null,null,null,null,null,null,null,null,null,null,null,null,null,null,null,null,null,null,null,null,null,28500,40000,{"$f":"IF(AND($BJ$20>=BG32,$BJ$20<=BH32),((BH32)-($BJ$20)),\"\")","v":""}]
[null,{"$f":"IF(BS61=3,\"\",\"Revolver®\")","v":"Revolver®"},null,null,null,null,null,{"$f":"IF(BS61=3,\"\",\"4 X 87 oz/case\")","v":"4 X 87 oz/case"},null,null,null,null,{"$f":"IF(BS61=3,\"\",IF($BS$61=1,BT66,IF($BS$61=2,BS66,BR66)))","v":2240},null,null,0.4,null,{"$f":"IF(BS61=3,\"\",IF(TRIM(P33)<>\"\",P33*43.56,\"\"))","v":17.424000000000003},null,{"$f":"IF(BS61=3,\"\",IF(TRIM(R33)<>\"\",IF(TRIM(K33)<>\"\",(K33*(4*87))/R33,(4*87)/R33),\"\"))","v":19.972451790633606},null,null,null,{"$f":"IF(BS61=3,\"\",IF(TRIM(K33)<>\"\",K33*M33,\"\"))","v":""}]
[null,"Specticle FLO (14+ gals)",null,null,null,null,null,"2 X 1 gal/case",null,null,null,null,2880,null,null,0.1492,null,6.4991520000000005,null,{"$f":"IF(TRIM(R34)<>\"\",IF(TRIM(K34)<>\"\",(K34*(2*128))/R34,(2*128)/R34),\"\")","v":39.389754232552185},null,null,null,"",null,null,null,null,null,null,null,null,null,null,null,null,null,null,null,null,null,null,null,null,null,null,null,null,null,null,null,null,null,null,null,null,null,null,null,null,{"$f":"SUM(BI28:BI32)","v":0},{"$f":"IF(BJ20>=2500,IF(BJ3>=0.08,0.09,IF(BJ3>=0.05,0.08,(BJ21)+0.01)),\"\")","v":0.09}]
[null,"Specticle FLO (1-13 gals)",null,null,null,null,null,"2 X 1 gal/case",null,null,null,null,3150,null,null,0.1492,null,6.4991520000000005,null,{"$f":"IF(TRIM(R35)<>\"\",IF(TRIM(K35)<>\"\",(K35*(2*128))/R35,(2*128)/R35),\"\")","v":39.389754232552185},null,null,null,"",null,null,null,null,null,null,null,null,null,null,null,null,null,null,null,null,null,null,null,null,null,null,null,null,null,null,null,null,null,null,null,null,null,null,{"$f":"IF(AND(BI34>0,BI34<40000),CONCATENATE(\"You are only \",TEXT(BI34,\"$#,##0\"),\" from moving up to Rebate Level \",TEXT(BJ34,\"0%\"),\".\"),\"\")","v":""}]
[null,"Specticle FLO",null,null,null,null,null,"8 X 18 oz/case",null,null,null,null,1816,null,null,0.1492,null,6.4991520000000005,null,{"$f":"IF(TRIM(R36)<>\"\",IF(TRIM(K36)<>\"\",(K36*(8*18))/R36,(8*18)/R36),\"\")","v":22.156736755810602},null,null,null,""]
[null,"Specticle G",null,null,null,null,null,"50 lb/bag",null,null,null,null,91,null,null,4.5913680000000001,null,199.99999008,null,{"$f":"IF(TRIM(R37)<>\"\",IF(TRIM(K37)<>\"\",(K37*(50))/R37,(50)/R37),\"\")","v":0.25000001240000064},null,null,null,"",null,null,"$5/bag –- 40 bag",null,null,null,{"$f":"IF(TRIM(K37)<>\"\",IF(VALUE(K37)>=40,(K37)*5,\"\"),\"\")","v":""}]
[null,{"$f":"IF(BS61=3,\"\",\"TopChoice®  (20+ bags)**\")","v":"TopChoice®  (20+ bags)**"},null,null,null,null,null,{"$f":"IF(BS61=3,\"\",\"50 lb/bag\")","v":"50 lb/bag"},null,null,null,null,{"$f":"IF(BS61=3,\"\",IF($BS$61=1,BT71,IF($BS$61=2,BS71,BR71)))","v":125},null,null,2,null,{"$f":"IF(BS61=3,\"\",IF(TRIM(P38)<>\"\",P38*43.56,\"\"))","v":87.12},null,{"$f":"IF(BS61=3,\"\",IF(TRIM(R38)<>\"\",IF(TRIM(K38)<>\"\",(K38*50)/R38,50/R38),\"\"))","v":0.57392102846648296},null,null,null,{"$f":"IF(BS61=3,\"\",IF(TRIM(K38)<>\"\",K38*M38,\"\"))","v":""},null,null,{"$f":"IF(BS61=3,\"\",\"$20/bag – 20 bag\")","v":"$20/bag – 20 bag"},null,null,null,{"$f":"IF(BS61=3,\"\",IF(TRIM(K38)<>\"\",IF(VALUE(BM92)>=20,(K38)*20,\"\"),\"\"))","v":""}]
[null,{"$f":"IF(BS61=3,\"\",\"TopChoice  (1-19 bags)**\")","v":"TopChoice  (1-19 bags)**"},null,null,null,null,null,{"$f":"IF(BS61=3,\"\",\"50 lb/bag\")","v":"50 lb/bag"},null,null,null,null,{"$f":"IF(BS61=3,\"\",IF($BS$61=1,BT72,IF($BS$61=2,BS72,BR72)))","v":137.5},null,null,2,null,{"$f":"IF(BS61=3,\"\",IF(TRIM(P39)<>\"\",P39*43.56,\"\"))","v":87.12},null,{"$f":"IF(BS61=3,\"\",IF(TRIM(R39)<>\"\",IF(TRIM(K39)<>\"\",(K39*50)/R39,50/R39),\"\"))","v":0.57392102846648296},null,null,null,{"$f":"IF(BS61=3,\"\",IF(TRIM(K39)<>\"\",K39*M39,\"\"))","v":""},null,null,{"$f":"IF(BS61=3,\"\",\"$10/bag\")","v":"$10/bag"},null,null,null,{"$f":"IF(BS61=3,\"\",IF(TRIM(K39)<>\"\",(K39)*10,\"\"))","v":""}]
[null,{"$f":"IF(BS61=3,\"\",\"Tribute® Total\")","v":"Tribute® Total"},null,null,null,null,null,{"$f":"IF(BS61=3,\"\",\"6 oz/bottle\")","v":"6 oz/bottle"},null,null,null,null,{"$f":"IF(BS61=3,\"\",IF($BS$61=1,BT73,IF($BS$61=2,BS73,BR73)))","v":332.42},null,null,7.0000000000000007E-2,null,{"$f":"IF(BS61=3,\"\",IF(TRIM(P40)<>\"\",P40*43.56,\"\"))","v":3.0492000000000004},null,{"$f":"IF(BS61=3,\"\",IF(TRIM(R40)<>\"\",IF(TRIM(K40)<>\"\",(K40*6)/R40,6/R40),\"\"))","v":1.967729240456513},null,null,null,{"$f":"IF(BS61=3,\"\",IF(TRIM(K40)<>\"\",K40*M40,\"\"))","v":""}]
[null,"     NON-AGENCY PRODUCTS"]
[null,"Acclaim® Extra",null,null,null,null,null," 4 X 1 gal/case",null,null,null,null,null,null,null,0.5,null,{"$f":"IF(TRIM(P42)<>\"\",P42*43.56,\"\")","v":21.78},null,{"$f":"IF(TRIM(R42)<>\"\",IF(TRIM(K42)<>\"\",(K42*(4*128))/R42,(4*128)/R42),\"\")","v":23.507805325987142},null,null,null,{"$f":"IF(BS61=2,\"\",IF(AND(TRIM(K42)<>\"\",TRIM(M42)<>\"\"),K42*M42,\"\"))","v":""},null,null,"$90/gal",null,null,null,{"$f":"IF(AND(TRIM(K42)<>\"\",TRIM(M42)<>\"\"),IF(VALUE(K42)>=0.25,((K42)/0.25)*90,\"\"),\"\")","v":""}]
[null,"Armada 50 WDG",null,null,null,null,null,"6 X 2 lb/case",null,null,null,null,null,null,null,1.2,null,{"$f":"IF(TRIM(P43)<>\"\",P43*43.56,\"\")","v":52.271999999999998},null,{"$f":"IF(TRIM(R43)<>\"\",IF(TRIM(K43)<>\"\",((K43)*192)/R43,192/R43),\"\")","v":3.6730945821854912},null,null,null,{"$f":"IF(AND(TRIM(K43)<>\"\",TRIM(M43)<>\"\"),K43*M43,\"\")","v":""},null,null,"  $12 lb – 12 lb",null,null,null,{"$f":"IF(AND(TRIM(K43)<>\"\",TRIM(M43)<>\"\"),IF((VALUE(BM87))>=12,(VALUE(K43))*12*12,\"\"),\"\")","v":""}]
[null,"Compass®",null,null,null,null,null,"20 X 8 oz/drum",null,null,null,null,null,null,null,0.25,null,{"$f":"IF(TRIM(P44)<>\"\",P44*43.56,\"\")","v":10.89},null,{"$f":"IF(TRIM(R44)<>\"\",IF(TRIM(K44)<>\"\",(K44*(20*8))/R44,(20*8)/R44),\"\")","v":14.692378328741965},null,null,null,"",null,null,"$500/drum – 1 drum",null,null,null,{"$f":"IF(AND(TRIM(K44)<>\"\",TRIM(M44)<>\"\"),IF((VALUE(BM88+BM89))>=8,(((VALUE(K44))*10))*50,\"\"),\"\")","v":""}]
[null,"Compass",null,null,null,null,null,"4 X 1 lb/case",null,null,null,null,null,null,null,0.25,null,{"$f":"IF(TRIM(P45)<>\"\",P45*43.56,\"\")","v":10.89},null,{"$f":"IF(TRIM(R45)<>\"\",IF(TRIM(K45)<>\"\",(K45*(64))/R45,(64)/R45),\"\")","v":5.8769513314967856},null,null,null,"",null,null,"$50lb – 8 lb",null,null,null,{"$f":"IF(AND(TRIM(K45)<>\"\",TRIM(M45)<>\"\"),IF((VALUE(BM88+BM89))>=8,(((VALUE(K45))*4))*50,\"\"),\"\")","v":""}]
[null,{"$f":"IF(BS61=3,\"\",\"ProStar® 70 WG\")","v":"ProStar® 70 WG"},null,null,null,null,null,{"$f":"IF(BS61=3,\"\",\"4 X 3 lb/case\")","v":"4 X 3 lb/case"},null,null,null,null,null,null,null,2.2000000000000002,null,{"$f":"IF(BS61=3,\"\",IF(TRIM(P46)<>\"\",P46*43.56,\"\"))","v":95.832000000000008},null,{"$f":"IF(BS61=3,\"\",IF(TRIM(R46)<>\"\",IF(TRIM(K46)<>\"\",(K46*192)/R46,192/R46),\"\"))","v":2.0035061357375405},null,null,null,{"$f":"IF(BS61=3,\"\",IF(AND(TRIM(K46)<>\"\",TRIM(M46)<>\"\"),K46*M46,\"\"))","v":""},null,null,{"$f":"IF(BS61=3,\"\",\"$3 lb – 24 lb\")","v":"$3 lb – 24 lb"},null,null,null,{"$f":"IF(BS61=3,\"\",IF(AND(TRIM(K46)<>\"\",TRIM(M46)<>\"\"),IF((VALUE(BM90))>=24,((VALUE(K46))*12)*3,\"\"),\"\"))","v":""}]
[null,"Forbid®",null,null,null,null,null," 6 X 8 oz/case",null,null,null,null,null,null,null,null,null,null,null,null,null,null,null,""]
[null,"Dylox® 420 SL",null,null,null,null,null,"  2 X 2.5 gal/case",null,null,null,null,null,null,null,6.9,null,{"$f":"IF(TRIM(P48)<>\"\",P48*43.56,\"\")","v":300.56400000000002},null,{"$f":"IF(TRIM(R48)<>\"\",IF(TRIM(K48)<>\"\",(K48*(5*128))/R48,(5*128)/R48),\"\")","v":2.1293301925712993},null,null,null,{"$f":"IF(BS61=2,\"\",IF(AND(TRIM(K48)<>\"\",TRIM(M48)<>\"\"),K48*M48,\"\"))","v":""}]
[null,"Prograss®",null,null,null,null,null,"  2 X 2.5 gal/case",null,null,null,null,null,null,null,1.5,null,{"$f":"IF(TRIM(P49)<>\"\",P49*43.56,\"\")","v":65.34},null,{"$f":"IF(TRIM(R49)<>\"\",IF(TRIM(K49)<>\"\",(K49*(5*128))/R49,(5*128)/R49),\"\")","v":9.7949188858279754},null,null,null,""]
[null,{"$f":"IF(BS61=3,\"\",\"Revolver\")","v":"Revolver"},null,null,null,null,null,{"$f":"IF(BS61=3,\"\",\"4 X 32 oz/case\")","v":"4 X 32 oz/case"},null,null,null,null,null,null,null,0.4,null,{"$f":"IF(BS61=3,\"\",IF(TRIM(P50)<>\"\",P50*43.56,\"\"))","v":17.424000000000003},null,{"$f":"IF(BS61=3,\"\",IF(TRIM(R50)<>\"\",IF(TRIM(K50)<>\"\",(K50*128)/R50,128/R50),\"\"))","v":7.3461891643709816},null,null,null,{"$f":"IF(BS61=3,\"\",IF(AND(TRIM(K50)<>\"\",TRIM(M50)<>\"\"),K50*M50,\"\"))","v":""}]
[null,"Specticle Total",null,null,null,null,null,"4 x 144 oz/case",null,null,null,null,null,null,null,16,null,{"$f":"IF(TRIM(P51)<>\"\",P51*43.56,\"\")","v":696.96},null,{"$f":"IF(TRIM(R51)<>\"\",IF(TRIM(K51)<>\"\",(K51*(4.5*128))/R51,(4.5*128)/R51),\"\")","v":0.82644628099173545},null,null,null,{"$f":"IF(AND(TRIM(K51)<>\"\",TRIM(M51)<>\"\"),K51*M51,\"\")","v":""}]
[null,null,null,null,null,null,null,null,null,null,null,null,null,null,null,null,null,null,null,null,null,null,null,"(B)",{"$f":"IF(SUM(X42:Z51,X30:Z40)>0,SUM(X42:Z51,X30:Z40),\"\")","v":""},null,null,null,null,null,"(D)",{"$f":"IF(SUM(AE30:AI32,AE42:AI46,AE37:AI39)>0,SUM(AE30:AI32,AE42:AI46,AE37:AI39),\"\")","v":""}]
[]
[]
[null,{"$f":"BG35","v":""}]
[]
[null,"CALCULATE YOUR REBATE",null,null,null,null,null,null,null,null,null,null,null,null,null,null,null,null,null,null,null,null,null,null,null,null,null,null,null,null,null,null,null,null,null,null,null,null,null,null,null,null,null,null,null,null,null,null,null,null,null,null,null,null,null,null,null,null,null,null,null,null,null,null,null,null,null,null,null,"Regular","California","Reg","Total Purch","HTHT Calc"]
[null,null,null,null,null,null,null,null,null,null,null,null,null,null,null,null,null,null,null,null,null,null,null,null,null,null,null,null,null,null,null,null,null,null,null,null,null,null,null,null,null,null,null,null,null,null,null,null,null,null,null,null,null,null,null,null,null,null,null,null,null,null,null,null,null,null,null,null,null,5150,{"$f":"BR58+(BR58*0.02175)","v":5262.0124999999998},{"$f":"BR58","v":5150},{"$f":"IF(TRIM(U25)<>\"\",U25*BR58,\"\")","v":""}]
[null,"PURCHASE TOTAL",null,null,null,null,"BASE BONUS",null,"OCTOBER\nBONUS+++",null,"BAYER PAK\nBONUS+",null,null,null,"..(C) TOTAL PROGRAM\nREBATE++"]
[null,null,null,null,null,null,null,null,null,null,null,null,null,null,null,null,null,null,null,null,null,null,null,null,null,null,null,null,null,null,null,null,null,null,null,null,null,null,null,null,null,null,null,null,null,null,null,null,null,null,null,null,null,null,null,null,null,null,null,null,null,null,null,null,null,null,null,null,null,null,null,null,{"$f":"SUM(BU58:BU59)","v":0}]
[null,"$2,500 < $10,000",null,null,null,null,0.02,null,0.01,null,0.01,null,null,null,0.04,null,null,null,null,"October Bonus",null,null,null,null,null,null,null,null,null,null," ",null,null,null,null,null,null,null,null,null,null,null,null,null,null,null,null,null,null,null,null,null,null,null,null,null,null,null,null,null,null,null,null,null,null,null,null,null,null,null,1]
[null,"$10,000 < $15,000",null,null,null,null,0.03,null,0.01,null,0.01,null,null,null,0.05,null,null,null,null,null,null,null,null,null,null,null,null,null,null,null,null,null,null,null,null,null,null,null,null,null,null,null,null,null,null,null,null,null,null,null,null,null,null,null,null,null,null,null,null,null,null,null,null,null,null,null,null,null,null,"Regular","California","Reg","Total Purch"]
[null,"$15,000 < $25,000",null,null,null,null,0.04,null,0.01,null,0.01,null,null,null,0.06,null,null,null,null,null,null,null,null,null,null,null,null,null,null,null,null,null,null,null,null,null,null,null,null,null,null,null,null,null,null,null,null,null,null,null,null,null,null,null,null,null,null,null,null,null,null,null,null,null,null,null,null,null,null,2700,{"$f":"BR63+(BR63*0.02175)","v":2758.7249999999999},{"$f":"BR63","v":2700},{"$f":"IF(BS61=2,\"\",IF(TRIM(K30)<>\"\",K30*BR63,\"\"))","v":""}]
[null,"$25,000 < $28,500",null,null,null,null,0.05,null,0.01,null,0.01,null,null,null,7.0000000000000007E-2,null,null,null,null,null,null,null,null,null,null,null,null,null,null,null,null,null,null,null,null,null,null,null,null,null,null,null,null,null,null,null,null,null,null,null,null,null,null,null,null,null,null,null,null,null,null,null,null,null,null,null,null,null,null,769.6,786.33879999999999,769.6,{"$f":"IF(TRIM(K31)<>\"\",K31*BR64,\"\")","v":""}]
[null,"$28,500 < $40,000",null,null,null,null,"Total program rebate for all purchases Oct 1 - Dec 9, 2016",null,null,null,null,null,null,null,0.08,null,null,null,null,null,null,null,null,null,null,null,null,null,null,null,null,null,null,null,null,null,null,null,null,null,null,null,null,null,null,null,null,null,null,null,null,null,null,null,null,null,null,null,null,null,null,null,null,null,null,null,null,null,null,1250,1277.1875,1250,""]
[null,"$40K+",null,null,null,null,null,null,null,null,null,null,null,null,0.09,null,null,null,null,null,null,null,null,null,null,null,null,null,null,null,null,null,null,null,null,null,null,null,null,null,null,null,null,null,null,null,null,null,null,null,null,null,null,null,null,null,null,null,null,null,null,null,null,null,null,null,null,null,null,2240,2288.7199999999998,2240,""]
[null,null,null,null,null,null,null,null,null,null,null,null,null,null,null,null,null,null,null,null,null,null,null,null,null,null,null,null,null,null,null,null,null,null,null,null,null,null,null,null,null,null,null,null,null,null,null,null,null,null,null,null,null,null,null,null,null,null,null,null,null,null,null,null,null,null,null,null,null,2880,2942.64,2880,""]
[null,null,null,null,null,null,null,null,null,null,null,null,null,null,null,null,null,null,null,null,null,null,null,null,null,null,null,null,null,null,null,null,null,null,null,null,null,null,null,null,null,null,null,null,null,null,null,null,null,null,null,null,null,null,null,null,null,null,null,null,null,null,null,null,null,null,null,null,null,3150,3218.5124999999998,3150,""]
[null,null,null,null,null,null,null,null,null,null,null,null,null,null,null,null,null,null,null,null,null,null,null,"SELECT REBATE (D)\n(IF APPLICABLE)",null,null,null,null,null,null,null,null,null,null,null,null,null,null,null,null,null,null,null,null,null,null,null,null,null,null,null,null,null,null,null,null,null,null,null,null,null,null,"Single Unit","PAK Unit","Total",null,null,null,null,1816,1855.498,1816,""]
[null,null,"TOTAL $ (A + B)",null,null,null,null,null,null,"TOTAL PROGRAM REBATE_(C) ",null,null,null,null,null,null,"TOTAL PROGRAM REBATE",null,null,null,null,null,null,null,null,null,null,null,null,null,null,"GRAND TOTAL REBATE $",null,null,null,null,null,null,null,null,null,null,null,null,null,null,null,null,null,null,null,null,null,null,null,null,null,null,null,null,null,null,null,null,null,null,null,null,null,91,92.979249999999993,91,""]
[null,null,{"$f":"IF(BU4=2,\"\",BJ20)","v":""},null,null,null,null,"x",null,{"$f":"IF(BJ21<>\"\",BJ21,\"\")","v":""},null,null,null,null,"=",null,{"$f":"IF(BU4=2,\"\",IF(BJ23>0,BJ23,\"\"))","v":""},null,null,null,null,"+",null,{"$f":"IF(BU4=2,\"\",BJ24)","v":""},null,null,null,null,null,"=",null,{"$f":"IF(TRIM(BJ25)=\"\",\"\",IF(BJ25>0,BJ25,\"\"))","v":""},null,null,null,null,null,null,null,null,null,null,null,null,null,null,null,null,null,null,null,null,null,null,null,null,null,null,null,null,null,null,null,null,null,null,null,null,null,125,127.71875,125,""]
[null,null,null,null,null,null,null,null,null,null,null,"     ",null,null,null,null,null,null,null,null,null,null,null,null,null,null,null,null,null,null,null,null,null,null,null,null,null,null,null,null,null,null,null,null,null,null,null,null,null,null,null,null,null,null,null,null,null,null,null,null,null,null,null,null,null,null,null,null,null,137.5,140.49062499999999,137.5,""]
[null,null,null,null,null,null,null,null,"GRAND TOTAL REBATE EARNED",null,null,null,null,null,null,null,null,null,null,null,null,null,null,null,null,null,null,null,null,null,"X100 = MyBayerRewards POINTS",null,null,null,null,null,null,null,null,null,null,null,null,null,null,null,null,null,null,null,null,null,null,null,null,null,null,null,null,null,null,null,null,null,null,null,null,null,null,332.42,339.65013500000003,332.42,""]
[null,null,null,null,null,null,null,null,null,{"$f":"IF(BU87>=2500,IF(TRIM(AF71)<>\"\",IF(AF71>0,(AF71)/(BJ1),\"\"),\"\"),\"\")","v":""},null,null,null,null,null,null,null,null,null,null,null,null,null,null,null,null,null,null,null,null,null,{"$f":"IF((BU4)<>2,\"\",IF((BJ25)=\"\",\"\",(BJ25)*100))","v":""}]
[null,null,null,null,null,null,null,null,null,null,null,null,null,null,null,null,null,null,null,null,null,null,null,null,null,null,null,null,null,null,null,null,null,null,null,null,null,null,null,null,null,null,null,null,null,null,null,null,null,null,null,null,null,null,null,null,null,null,null,null,null,null,null,null,null,null,null,null,null,null,null,null,{"$f":"IF(AND(TRIM(K42)<>\"\",TRIM(M42)<>\"\"),K42*M42,\"\")","v":""}]
[null,"I would like to receive (choose one): ",null,null,null,null,null,null,null,null,"MyBayerRewards Points",null,null,null,null,null," or",null,"Distributor Credit",null,null,null,null,"MyBayerRewards Member ID",null,null,null,null,null,null,null,null,null,null,null,null,null,null,null,null,null,null,null,null,null,null,null,null,null,null,null,null,null,null,null,null,null,null,null,null,null,null,null,null,null,null,null,null,null,null,null,null,""]
[null,null,null,null,null,null,null,null,null,null,null,null,null,null,null,null,null,null,null,null,null,null,null,null,null,null,null,null,null,null,null,null,null,null,null,null,null,null,null,null,null,null,null,null,null,null,null,null,null,null,null,null,null,null,null,null,null,null,null,null,null,null,null,null,null,null,null,null,null,null,null,null,""]
[null,null,null,null,null,null,null,null,null,null,null,null,null,null,null,null,null,null,null,null,null,null,null,null,null,null,null,null,null,null,null,null,null,null,null,null,null,null,null,null,null,null,null,null,null,null,null,null,null,null,null,null,null,null,null,null,null,null,null,null,null,null,null,null,null,null,null,null,null,null,null,null,""]
[null,null,null,"           Verify your rebate selection and update your profile at My Bayer Rewards\n by 1st March, 2017  \nmyrewards.cropscience.bayer.com",null,null,null,null,null,null,null,null,null,null,null,null,null,null,null,null,null,null,null,null,null,null,null,null,null,null,null,null,null,null,null,null,null,null,null,null,null,null,null,null,null,null,null,null,null,null,null,null,null,null,null,null,null,null,null,null,0.17,{"$f":"IF(TRIM(#REF!)<>\"\",IF(#REF!-(INT(#REF!))=BI79,1,\"\"),\"\")","v":{"$error":"#REF!"}},null,null,null,null,null,null,null,null,null,null,""]
[null,null,null,null,null,null,null,null,null,null,null,null,null,null,null,null,null,null,null,null,null,null,null,null,null,null,null,null,null,null,null,null,null,null,null,null,null,null,null,null,null,null,null,null,null,null,null,null,null,null,null,null,null,null,null,null,null,null,null,null,0.33,{"$f":"IF(TRIM(#REF!)<>\"\",IF(#REF!-(INT(#REF!))=BI80,1,\"\"),\"\")","v":{"$error":"#REF!"}},null,null,null,null,null,null,null,null,null,null,""]
[null,null,null,null,null,null,null,null,null,null,null,null,null,null,null,null,null,null,null,null,null,null,null,null,null,null,null,null,null,null,null,null,null,null,null,null,null,null,null,null,null,null,null,null,null,null,null,null,null,null,null,null,null,null,null,null,null,null,null,{"$f":"IF(TRIM(BJ85)<>\"\",IF((BJ85)=1,TRUE,\"\"),\"\")","v":{"$error":"#REF!"}},0.5,{"$f":"IF(TRIM(#REF!)<>\"\",IF(#REF!-(INT(#REF!))=BI81,1,\"\"),\"\")","v":{"$error":"#REF!"}},null,null,null,null,null,null,null,null,null,null,""]
[null,null,null,null,null,null,null,null,null,null,null,null,null,null,null,null,null,null,null,null,null,null,null,null,null,null,null,null,null,null,null,null,null,null,null,null,null,null,null,null,null,null,null,null,null,null,null,null,null,null,null,null,null,null,null,null,null,null,null,null,0.67,{"$f":"IF(TRIM(#REF!)<>\"\",IF(#REF!-(INT(#REF!))=BI82,1,\"\"),\"\")","v":{"$error":"#REF!"}},null,null,null,null,null,null,null,null,null,null,""]
[null,null,null,null,null,null,null,null,null,null,null,null,null,null,null,null,null,null,null,null,null,null,null,null,null,null,null,null,null,null,null,null,null,null,null,null,null,null,null,null,null,null,null,null,null,null,null,null,null,null,null,null,null,null,null,null,null,null,null,null,0.83,{"$f":"IF(TRIM(#REF!)<>\"\",IF(#REF!-(INT(#REF!))=BI83,1,\"\"),\"\")","v":{"$error":"#REF!"}},null,null,null,null,null,null,null,null,null,null,""]
[null,null,null,null,null,null,null,null,null,null,null,null,null,null,null,null,null,null,null,null,null,null,null,null,null,null,null,null,null,null,null,null,null,null,null,null,null,null,null,null,null,null,null,null,null,null,null,null,null,null,null,null,null,null,null,null,null,null,null,null,0,{"$f":"IF(TRIM(#REF!)<>\"\",IF(#REF!-(INT(#REF!))=BI84,1,\"\"),\"\")","v":{"$error":"#REF!"}},null,null,null,null,null,null,null,null,null,null,""]
[null,null,null,null,null,null,null,null,null,null,null,null,null,null,null,null,null,null,null,null,null,null,null,null,null,null,null,null,null,null,null,null,null,null,null,null,null,null,null,null,null,null,null,null,null,null,null,null,null,null,null,null,null,null,null,null,null,null,null,null,null,{"$f":"SUM(BJ79:BJ84)","v":{"$error":"#REF!"}},null,null,null,null,null,null,null,null,null,"PAK$",{"$f":"BU60","v":0}]
[null,null,null,"Customer Fall Solutions and NOW promotional cumulative purchases (August 1 - December 9, 2016) must be $2,500 or more to qualify for Select Product Rebates and Total Program Rebates.  Participants must be members of MyBayerRewards.  New members signed up before March 1, 2017 will receive 2016 Fall Solutions rebates. All rebates for 2016 Bayer Fall Solutions will be paid based on participant's My Bayer Rewards profile choice as of March 1, 2017 . If no selection is made, the default for Fall Solutions rebate will be Loyalty Points. Purchases qualifying for rebates will be the net of reward or credits. All products must be invoiced between October 1 and December 9, 2016 to qualify. Rebate calculations will be based on the date of actual product invoice and calculator tools are provided for estimation purposes only. Rebates will only be paid or delivered to the company or name listed on the invoice. No checks can be issued to a third party. Please allow for rebates to be fulfilled by August 31, 2017. Only end-user purchases qualify for this program, and purchases must be from a Bayer authorized Distributor or Agent. Resale of product(s) purchased within this program will not qualify for Distributor Credits or My Bayer Rewards points. If questions arise, please contact My Bayer Rewards at 1-888-456-6464 or e-mail mybayerrewards@aimia.com. Bayer CropScience LP, Environmental Science Division, 2 T.W. Alexander Drive, Research Triangle Park, NC 27709. 1-800-331-2867. www.BackedbyBayer.com. Bayer (reg'd), the Bayer Cross (reg'd), 26GT®, Acclaim®, Banol®, Bayleton®,Celsius® Chipco®, Compass®, Dylox®, Fiata®, Forbid®, Interface®, Merit®, Mirage®, Nortica®, Prostar®, Proxy®, Ronstar®, Signature™ Specticle®, Signature™ Stressgard®, Tartan®, Tribute® and Topchoice® are trademarks of Bayer. Please verify state registration of these products in your state before selling, using or distributing. Not all products and rates are registered in all states. Always read and follow label instructions. ©2016 Bayer CropScience LP. 14BPG-059-FS1",null,null,null,null,null,null,null,null,null,null,null,null,null,null,null,null,null,null,null,null,null,null,null,null,null,null,null,null,null,null,null,null,null,null,null,null,null,null,null,null,null,null,null,null,null,null,null,null,null,null,null,null,null,null,null,null,null,null,null,null,null,null,null,null,null,null,null,null,null,null,null,null,null,null,null,null,null,null,null,null,null,null,null,null,null,null,0.17,{"$f":"IF(TRIM($K$43)<>\"\",IF($K$43-(INT($K$43))=CM86,1,\"\"),\"\")","v":""}]
[null,null,null,null,null,null,null,null,null,null,null,null,null,null,null,null,null,null,null,null,null,null,null,null,null,null,null,null,null,null,null,null,null,null,null,null,null,null,null,null,null,null,null,null,null,null,null,null,null,null,null,null,null,null,null,null,null,null,null,null,0.33,"",{"$f":"K43*12","v":0},0,{"$f":"SUM(BK87:BL87)","v":0},null,null,null,null,null,null,null,{"$f":"SUM(BU63:BU86)","v":0},{"$f":"SUM(BV58:BV85)","v":0}]
[null,null,null,null,null,null,null,null,null,null,null,null,null,null,null,null,null,null,null,null,null,null,null,null,null,null,null,null,null,null,null,null,null,null,null,null,null,null,null,null,null,null,null,null,null,null,null,null,null,null,null,null,null,null,null,null,null,null,null,{"$f":"IF(TRIM(BJ92)>0,IF((BJ92)=1,TRUE,\"\"),\"\")","v":""},0.5,"",{"$f":"K44*10","v":0},0,0]
[null,null,null,null,null,null,null,null,null,null,null,null,null,null,null,null,null,null,null,null,null,null,null,null,null,null,null,null,null,null,null,null,null,null,null,null,null,null,null,null,null,null,null,null,null,null,null,null,null,null,null,null,null,null,null,null,null,null,null,null,0.67,"",{"$f":"K45*4","v":0},0,0]
[null,null,null,null,null,null,null,null,null,null,null,null,null,null,null,null,null,null,null,null,null,null,null,null,null,null,null,null,null,null,null,null,null,null,null,null,null,null,null,null,null,null,null,null,null,null,null,null,null,null,null,null,null,null,null,null,null,null,null,null,0.83,"",{"$f":"K46*12","v":0},0,0]
[null,"Contact Name",null,null,null,null,null,null,null,null,null,null,null,null,null,"Company Number ",null,null,null,null,null,null,null,null,null,null,null,null,null,null,null,null,null,null,null,null,null,null,null,null,null,null,null,null,null,null,null,null,null,null,null,null,null,null,null,null,null,null,null,null,0,"",{"$f":"K31","v":0},0,0]
[null,null,null,null,null,null,null,null,null,null,null,null,null,null,null,null,null,null,null,null,null,null,null,null,null,null,null,null,null,null,null,null,null,null,null,null,null,null,null,null,null,null,null,null,null,null,null,null,null,null,null,null,null,null,null,null,null,null,null,null,null,{"$f":"SUM(BJ86:BJ91)","v":0},{"$f":"K38*1","v":0},0,0]
[null,null,null,null,null,null,null,null,null,null,null,null,null,null,null,null,null,null,null,null,null,null,null,null,null,null,null,null,null,null,null,null,null,null,null,null,null,null,null,null,null,null,null,null,null,null,null,null,null,null,null,null,null,null,null,null,null,null,null,null,0.17,{"$f":"IF(TRIM($K$47)<>\"\",IF($K$47-(INT($K$47))=BI93,1,\"\"),\"\")","v":""},{"$f":"K39*1","v":0},0,0]
[null,null,null,null,null,null,null,null,null,null,null,null,null,null,null,null,null,null,null,null,null,null,null,null,null,null,null,null,null,null,null,null,null,null,null,null,null,null,null,null,null,null,null,null,null,null,null,null,null,null,null,null,null,null,null,null,null,null,null,null,0.33,""]
[null,null,null,null,null,null,null,null,null,null,null,null,null,null,null,null,null,null,null,null,null,null,null,null,null,null,null,null,null,null,null,null,null,null,null,null,null,null,null,null,null,null,null,null,null,null,null,null,null,null,null,null,null,null,null,null,null,null,null,{"$f":"IF(TRIM(BJ99)>0,IF((BJ99)=1,TRUE,\"\"),\"\")","v":""},0.5,""]
[null,null,null,null,null,null,null,null,null,null,null,null,null,null,null,null,null,null,null,null,null,null,null,null,null,null,null,null,null,null,null,null,null,null,null,null,null,null,null,null,null,null,null,null,null,null,null,null,null,null,null,null,null,null,null,null,null,null,null,null,0.67,""]
[null,null,null,null,null,null,null,null,null,null,null,null,null,null,null,null,null,null,null,null,null,null,null,null,null,null,null,null,null,null,null,null,null,null,null,null,null,null,null,null,null,null,null,null,null,null,null,null,null,null,null,null,null,null,null,null,null,null,null,null,0.83,""]
[null,null,null,null,null,null,null,null,null,null,null,null,null,null,null,null,null,null,null,null,null,null,null,null,null,null,null,null,null,null,null,null,null,null,null,null,null,null,null,null,null,null,null,null,null,null,null,null,null,null,null,null,null,null,null,null,null,null,null,null,0,""]
[null,null,null,null,null,null,null,null,null,null,null,null,null,null,null,null,null,null,null,null,null,null,null,null,null,null,null,null,null,null,null,null,null,null,null,null,null,null,null,null,null,null,null,null,null,null,null,null,null,null,null,null,null,null,null,null,null,null,null,null,null,{"$f":"SUM(BJ93:BJ98)","v":0}]